bitfinex-derivatives/quotes_SOLF0:USTF0_20250821
["timestamp","ask_amount","ask_price","bid_price","bid_amount"]
[1755796686504,3.8198354,180.73,180.66,5.5358]
[1755796686704,2.9,180.74,180.66,5.5358]
[1755796687403,2.9,180.74,180.64,2.82]
[1755796687605,2.9,180.74,180.68,5.03595147]
[1755796688209,2.9,180.74,180.64,2.82]
[1755796688606,3.81768612,180.73,180.64,2.82]
[1755796688807,2.9,180.74,180.64,2.82]
[1755796689009,3.818156,180.73,180.64,2.82]
[1755796689211,2.9,180.74,180.64,2.82]
[1755796689413,2.9,180.74,180.64,8.3564]
[1755796689414,3.81688205,180.73,180.64,8.3564]
[1755796689616,2.9,180.74,180.64,8.3564]
[1755796689807,2.9,180.74,180.64,2.82]
[1755796690309,5.03595147,180.73,180.64,2.82]
[1755796690704,3.81484815,180.72,180.64,2.82]
[1755796690907,5.03595147,180.73,180.64,2.82]
[1755796691410,3.81430548,180.72,180.64,2.82]
[1755796691608,5.03595147,180.73,180.64,2.82]
[1755796691911,3.81511505,180.72,180.59,5.538]
[1755796692111,3.81511505,180.71,180.59,5.538]
[1755796692311,5.03595147,180.73,180.59,5.538]
[1755796692510,3.81485132,180.72,180.59,5.538]
[1755796692809,3.81485132,180.71,180.59,5.538]
[1755796693011,5.03595147,180.73,180.59,5.538]
[1755796693212,3.81485132,180.72,180.58,5.5384]
[1755796693412,5.03595147,180.7,180.57,372.32]
[1755796693612,3.81485132,180.69,180.57,372.32]
[1755796693815,5.03595147,180.7,180.58,5.5383]
[1755796694008,3.81558427,180.69,180.58,5.5383]
[1755796694310,5.03595147,180.7,180.57,372.32]
[1755796694507,5.03595147,180.73,180.59,5.03595147]
[1755796694707,3.81483302,180.72,180.62,5.03595147]
[1755796694912,377.03595147,180.77,180.62,144.87595147]
[1755796695116,372.0,180.77,180.62,144.87595147]
[1755796695410,372.0,180.77,180.65,5.03595147]
[1755796695601,5.03595147,180.79,180.65,5.03595147]
[1755796697513,5.03595147,180.79,180.65,10.57205147]
[1755796697914,5.03595147,180.79,180.65,5.03595147]
[1755796698411,5.03595147,180.79,180.65,10.57205147]
[1755796698816,5.03595147,180.79,180.65,5.03595147]
[1755796699017,5.03595147,180.79,180.66,5.5358]
[1755796699410,5.03595147,180.79,180.65,5.03595147]
[1755796702218,5.03595147,180.79,180.67,5.5355]
[1755796702517,5.03595147,180.79,180.61,139.84]
[1755796702809,5.03595147,180.79,180.66,5.5358]
[1755796703217,5.03595147,180.79,180.65,5.03595147]
[1755796703716,5.03595147,180.79,180.65,5.5363]
[1755796703910,5.03595147,180.79,180.64,5.03595147]
[1755796704109,5.03595147,180.79,180.64,10.57245147]
[1755796704713,5.03595147,180.79,180.65,5.5363]
[1755796705020,5.03595147,180.79,180.64,5.03595147]
[1755796705621,5.03595147,180.76,180.57,372.32]
[1755796705814,5.03595147,180.73,180.59,5.03595147]
[1755796706519,5.03595147,180.76,180.62,5.03595147]
[1755796707215,5.03595147,180.76,180.65,5.5362]
[1755796707516,5.03595147,180.8,180.65,5.03595147]
[1755796709126,5.03595147,180.8,180.68,5.5353]
[1755796709319,5.03595147,180.8,180.65,5.03595147]
[1755796709519,5.03595147,180.8,180.68,5.5354]
[1755796709718,5.03595147,180.8,180.62,5.03595147]
[1755796709916,5.03595147,180.77,180.63,5.03595147]
[1755796710220,5.03595147,180.77,180.65,5.5363]
[1755796710422,5.03595147,180.77,180.63,5.03595147]
[1755796710722,5.03595147,180.77,180.61,5.03595147]
[1755796710923,5.03595147,180.74,180.57,372.32]
[1755796711226,5.03595147,180.71,180.59,5.538]
[1755796711524,5.03595147,180.71,180.57,372.32]
[1755796712324,5.03595147,180.68,180.57,372.32]
[1755796712624,5.03595147,180.68,180.57,377.8588]
[1755796712923,6.10544736,180.73,180.57,372.32]
[1755796713125,5.03595147,180.68,180.57,372.32]
[1755796713319,5.03595147,180.68,180.55,10.57525147]
[1755796714421,5.03595147,180.68,180.55,5.5393]
[1755796714616,6.10544736,180.73,180.58,5.03595147]
[1755796714822,11.14139883,180.71,180.58,5.03595147]
[1755796715019,5.03595147,180.71,180.58,5.03595147]
[1755796715220,5.03595147,180.72,180.58,5.03595147]
[1755796715925,5.03595147,180.72,180.61,5.5373]
[1755796716229,6.10544736,180.74,180.58,5.03595147]
[1755796716426,11.14139883,180.75,180.58,5.03595147]
[1755796716624,6.10544736,180.75,180.61,5.03595147]
[1755796716829,6.10544736,180.75,180.64,5.03595147]
[1755796717029,9.0130907,180.8,180.64,5.03595147]
[1755796717030,6.10544736,180.76,180.64,5.03595147]
[1755796717226,6.10544736,180.77,180.64,5.03595147]
[1755796717527,6.10544736,180.78,180.66,5.536]
[1755796717717,6.10544736,180.78,180.64,5.03595147]
[1755796717922,6.10544736,180.79,180.67,5.5354]
[1755796718528,6.10544736,180.79,180.68,5.5354]
[1755796719527,6.10544736,180.79,180.69,5.5351]
[1755796719730,6.10544736,180.79,180.67,5.03595147]
[1755796720427,6.10544736,180.8,180.68,5.5352]
[1755796720625,6.10544736,180.8,180.67,5.03595147]
[1755796720930,11.14139883,180.78,180.64,5.5365]
[1755796721130,6.10544736,180.77,180.64,5.5365]
[1755796721425,5.03595147,180.75,180.64,5.5366]
[1755796721929,6.10544736,180.77,180.65,5.5362]
[1755796722229,6.10544736,180.77,180.62,5.03595147]
[1755796722418,6.10544736,180.77,180.65,10.57205147]
[1755796722624,6.10544736,180.77,180.65,5.03595147]
[1755796722825,11.14139883,180.78,180.65,5.03595147]
[1755796723031,6.10544736,180.79,180.65,5.03595147]
[1755796723531,6.10544736,180.8,180.65,5.03595147]
[1755796723727,11.14139883,180.81,180.68,5.03595147]
[1755796724220,11.14139883,180.81,180.7,5.5348]
[1755796724625,6.10544736,180.81,180.71,5.5343]
[1755796724821,6.10544736,180.82,180.68,5.03595147]
[1755796725127,6.10544736,180.81,180.68,5.03595147]
[1755796725323,11.14139883,180.81,180.65,5.03595147]
[1755796725527,5.03595147,180.78,180.65,5.03595147]
[1755796726128,11.14139883,180.78,180.62,5.03595147]
[1755796726630,5.03595147,180.78,180.65,5.03595147]
[1755796727531,6.10544736,180.79,180.65,5.03595147]
[1755796727830,6.10544736,180.8,180.65,5.03595147]
[1755796728332,6.10544736,180.8,180.67,5.5357]
[1755796728831,6.10544736,180.8,180.68,5.5354]
[1755796729032,6.10544736,180.8,180.65,5.03595147]
[1755796729428,6.10544736,180.8,180.68,5.5354]
[1755796729730,6.10544736,180.8,180.65,5.03595147]
[1755796729935,6.10544736,180.8,180.67,5.5356]
[1755796730134,6.10544736,180.8,180.65,5.03595147]
[1755796730331,6.10544736,180.8,180.68,5.03595147]
[1755796730834,6.10544736,180.8,180.69,5.5349]
[1755796731229,5.03595147,180.81,180.7,5.5348]
[1755796731435,7.06854255,180.83,180.71,5.03595147]
[1755796731637,0.96309519,180.83,180.71,5.03595147]
[1755796731830,0.96309519,180.83,180.72,5.5339]
[1755796732039,0.96309519,180.83,180.71,5.03595147]
[1755796734836,0.96309519,180.83,180.71,10.57045147]
[1755796735737,0.96309519,180.83,180.71,5.03595147]
[1755796736038,0.96309519,180.83,180.69,5.03595147]
[1755796737438,0.96309519,180.83,180.69,10.57105147]
[1755796737639,0.96309519,180.83,180.69,5.03595147]
[1755796739540,0.96309519,180.83,180.69,10.57105147]
[1755796739741,0.96309519,180.83,180.69,5.03595147]
[1755796739945,0.96309519,180.83,180.69,10.57105147]
[1755796740337,0.96309519,180.83,180.69,5.03595147]
[1755796740538,5.03595147,180.78,180.66,5.03595147]
[1755796740938,5.03595147,180.78,180.63,5.03595147]
[1755796741640,5.03595147,180.78,180.67,5.5357]
[1755796742139,11.14139883,180.81,180.66,5.03595147]
[1755796742745,6.10544736,180.82,180.69,5.5351]
[1755796743237,11.14139883,180.82,180.69,5.5351]
[1755796743442,5.03595147,180.82,180.7,5.5348]
[1755796743842,5.03595147,180.82,180.69,5.535]
[1755796744044,5.03595147,180.82,180.66,5.03595147]
[1755796744243,11.14139883,180.82,180.66,5.03595147]
[1755796744546,5.03595147,180.79,180.64,5.03595147]
[1755796745049,5.03595147,180.79,180.66,5.536]
[1755796745448,5.03595147,180.79,180.66,5.5359]
[1755796745745,5.03595147,180.79,180.64,5.03595147]
[1755796746542,5.03595147,180.79,180.66,5.536]
[1755796747150,5.03595147,180.79,180.65,5.5363]
[1755796747353,5.03595147,180.79,180.59,372.0]
[1755796747354,5.03595147,180.76,180.62,5.03595147]
[1755796747547,5.03595147,180.73,180.6,5.03595147]
[1755796747747,5.03595147,180.73,180.59,372.0]
[1755796747947,5.03595147,180.7,180.59,372.0]
[1755796748149,5.03595147,180.7,180.59,377.5381]
[1755796748552,5.03595147,180.7,180.59,372.0]
[1755796749553,5.03595147,180.7,180.59,377.5382]
[1755796750050,5.03595147,180.7,180.59,372.0]
[1755796750449,5.03595147,180.7,180.57,5.03595147]
[1755796751253,5.03595147,180.7,180.58,5.5385]
[1755796751748,5.03595147,180.72,180.57,5.03595147]
[1755796751954,5.03595147,180.72,180.59,5.538]
[1755796752155,5.03595147,180.72,180.57,5.03595147]
[1755796752454,5.03595147,180.72,180.58,5.5383]
[1755796752856,5.03595147,180.72,180.57,5.03595147]
[1755796753357,5.03595147,180.72,180.59,5.5382]
[1755796753756,5.03595147,180.72,180.63,3.09]
[1755796753952,3.08,180.71,180.63,3.09]
[1755796755659,5.03595147,180.69,180.63,3.09]
[1755796755858,3.08,180.68,180.63,3.09]
[1755796756059,5.03595147,180.69,180.63,3.09]
[1755796756255,3.08,180.7,180.64,3.09]
[1755796761156,3.08,180.7,180.58,3.09]
[1755796762360,6.17166913,180.67,180.58,3.09]
[1755796762557,3.09166913,180.65,180.58,3.09]
[1755796762758,6.05166913,180.65,180.58,3.09]
[1755796763663,3.09166913,180.67,180.58,3.09]
[1755796764255,2.96,180.66,180.58,3.09]
[1755796764766,2.96,180.64,180.58,3.09]
[1755796764959,3.09166913,180.72,180.58,3.09]
[1755796764960,3.09166913,180.63,180.58,3.09]
[1755796765162,2.96,180.61,180.58,3.09]
[1755796765360,3.09166913,180.61,180.58,3.09]
[1755796765560,2.96,180.6,180.56,2.9]
[1755796765864,2.96,180.59,180.56,2.9]
[1755796766459,2.96,180.59,180.51,8.63206913]
[1755796766659,2.96,180.59,180.56,2.9]
[1755796766862,2.96,180.58,180.51,3.09166913]
[1755796767065,16.63,180.69,180.52,2.9]
[1755796767261,6.05166913,180.61,180.53,2.9]
[1755796768464,6.05166913,180.61,180.53,8.44]
[1755796768765,6.05166913,180.61,180.52,2.9]
[1755796769063,6.05166913,180.61,180.53,2.9]
[1755796769560,2.96,180.6,180.53,2.9]
[1755796770663,3.09166913,180.57,180.5,2.9]
[1755796770867,2.96,180.56,180.5,2.9]
[1755796771065,6.05166913,180.55,180.51,2.9]
[1755796771464,3.09166913,180.57,180.47,3.09166913]
[1755796771770,3.09166913,180.59,180.49,3.09166913]
[1755796771966,3.09166913,180.59,180.5,2.9]
[1755796772466,3.09166913,180.59,180.52,2.9]
[1755796773160,2.96,180.6,180.52,2.9]
[1755796773764,2.96,180.6,180.54,8.4395]
[1755796773966,2.96,180.63,180.55,3.09166913]
[1755796774169,2.96,180.63,180.56,2.9]
[1755796774772,3.09166913,180.63,180.56,2.9]
[1755796774968,2.96,180.62,180.56,2.9]
[1755796777373,2.96,180.62,180.56,8.4391]
[1755796777668,6.05166913,180.65,180.57,2.9]
[1755796778367,2.96,180.65,180.57,5.99166913]
[1755796778564,2.96,180.65,180.59,2.9]
[1755796778975,6.05166913,180.65,180.59,2.9]
[1755796779170,2.96,180.62,180.56,2.9]
[1755796779466,2.96,180.6,180.52,2.9]
[1755796779972,3.09166913,180.59,180.57,0.03605715]
[1755796780366,3.09166913,180.59,180.49,8.63296913]
[1755796780670,3.09166913,180.59,180.56,0.04068204]
[1755796780671,2.96,180.58,180.56,0.04068204]
[1755796780965,2.96,180.58,180.55,2.9]
[1755796781375,2.96,180.58,180.55,2.94030884]
[1755796781766,6.05166913,180.61,180.56,2.9]
[1755796781972,2.96,180.61,180.57,2.9]
[1755796782470,3.09166913,180.62,180.57,0.03578375]
[1755796782671,2.96,180.59,180.57,0.03578375]
[1755796783371,3.09166913,180.6,180.57,0.03578375]
[1755796783372,2.96,180.58,180.57,0.03578375]
[1755796783574,6.05166913,180.58,180.57,0.03578375]
[1755796784875,2.96,180.57,180.48,2.9]
[1755796785074,6.05166913,180.54,180.48,2.9]
[1755796786176,0.0388994,180.53,180.49,2.9]
[1755796786475,0.0388994,180.53,180.46,2.9]
[1755796787981,0.0388994,180.53,180.46,8.4421]
[1755796788181,0.0388994,180.53,180.47,2.9]
[1755796788378,0.0388994,180.53,180.47,5.99166913]
[1755796788578,0.0388994,180.53,180.48,2.9]
[1755796788772,0.0388994,180.53,180.49,3.09166913]
[1755796788979,0.0388994,180.53,180.52,2.9]
[1755796791672,0.0388994,180.53,180.5,2.9]
[1755796791979,2.9988994,180.53,180.47,2.9]
[1755796793885,0.0388994,180.53,180.47,2.9]
[1755796796185,2.8488994,180.53,180.47,2.9]
[1755796797183,0.0388994,180.53,180.47,2.9]
[1755796800092,2.81,180.51,180.47,2.9]
[1755796801388,0.0388994,180.53,180.45,3.09166913]
[1755796801690,0.0388994,180.53,180.43,148.24309087]
[1755796801691,0.0388994,180.53,180.49,3.03]
[1755796801986,2.81,180.58,180.51,3.03]
[1755796802191,0.03954984,180.53,180.52,3.03]
[1755796802591,2.81,180.58,180.52,3.03]
[1755796802890,0.0414469,180.54,180.52,3.03]
[1755796803090,0.0414469,180.54,180.51,3.03]
[1755796803692,0.0414469,180.54,180.5,8.63236913]
[1755796804187,0.0414469,180.54,180.5,3.03]
[1755796804394,0.0414469,180.54,180.47,3.03]
[1755796804793,0.0414469,180.54,180.47,8.5719]
[1755796804989,0.0414469,180.54,180.47,3.03]
[1755796806395,2.8514469,180.54,180.47,3.03]
[1755796806692,2.8514469,180.54,180.44,3.03]
[1755796807796,2.81,180.53,180.44,3.03]
[1755796808486,0.03770593,180.5,180.44,3.03]
[1755796810497,0.03770593,180.5,180.43,148.24309087]
[1755796810692,7.85295813,180.48,180.4,3.03]
[1755796811699,0.03499966,180.46,180.4,3.03]
[1755796814001,0.03499966,180.46,180.42,5.5432]
[1755796814201,0.03499966,180.46,180.43,3.03]
[1755796814401,2.81,180.56,180.44,3.03]
[1755796814595,2.81,180.56,180.49,3.03]
[1755796815595,5.04295813,180.61,180.49,8.5711]
[1755796815791,2.81,180.59,180.5,3.03]
[1755796816392,2.81,180.59,180.48,5.04295813]
[1755796816596,2.81,180.59,180.52,3.03]
[1755796817899,2.81,180.58,180.48,3.03]
[1755796818497,2.81,180.58,180.49,5.5412]
[1755796818897,2.81,180.58,180.5,3.03]
[1755796819909,2.81,180.58,180.5,8.571]
[1755796820301,2.81,180.58,180.51,3.03]
[1755796820802,5.04295813,180.62,180.51,3.03]
[1755796821004,21.03054498,181.16,180.52,3.03]
[1755796821005,2.81,180.65,180.52,3.03]
[1755796821404,2.81,180.65,180.54,3.03]
[1755796823106,2.93,180.63,180.54,3.03]
[1755796823906,2.93,180.62,180.54,3.03]
[1755796828911,2.93,180.65,180.56,2.83]
[1755796830011,2.93,180.65,180.56,8.3689]
[1755796830217,139.48,180.68,180.57,2.83]
[1755796830411,139.48,180.68,180.58,5.5383]
[1755796830610,139.48,180.68,180.59,2.83]
[1755796832114,139.48,180.68,180.59,8.368]
[1755796832513,2.93,180.67,180.59,2.83]
[1755796833012,2.93,180.67,180.56,2.83]
[1755796833216,2.93,180.67,180.56,8.3691]
[1755796833715,2.93,180.67,180.56,2.83]
[1755796833918,2.93,180.67,180.56,8.3691]
[1755796834317,2.93,180.67,180.56,2.83]
[1755796834518,2.93,180.67,180.59,2.83]
[1755796836019,2.93,180.67,180.59,8.3681]
[1755796836920,2.93,180.67,180.59,2.83]
[1755796838225,2.93,180.67,180.55,10.58225813]
[1755796838430,2.93,180.64,180.56,2.83]
[1755796838734,2.93,180.61,180.53,2.83]
[1755796839629,2.93,180.64,180.53,2.83]
[1755796840133,2.93,180.64,180.56,2.83]
[1755796842334,142.41,180.68,180.56,2.83]
[1755796842731,142.41,180.68,180.57,5.5388]
[1755796843035,2.93,180.67,180.56,2.83]
[1755796843332,2.93,180.67,180.46,11.0844]
[1755796843333,2.93,180.67,180.57,5.04295813]
[1755796843537,2.93,180.67,180.58,2.83]
[1755796843938,2.93,180.67,180.59,5.538]
[1755796844838,2.93,180.67,180.58,2.83]
[1755796846941,2.93,180.66,180.55,2.83]
[1755796847336,2.93,180.66,180.56,5.5391]
[1755796847531,2.93,180.66,180.55,2.83]
[1755796849239,2.93,180.66,180.57,2.83]
[1755796849634,2.93,180.66,180.57,8.3688]
[1755796849840,2.93,180.66,180.57,2.83]
[1755796850040,139.48,180.68,180.57,2.83]
[1755796850242,139.48,180.68,180.59,5.538]
[1755796850444,139.48,180.68,180.6,2.83]
[1755796850744,139.48,180.68,180.6,8.3678]
[1755796850939,139.48,180.68,180.6,2.83]
[1755796851746,2.93,180.69,180.6,2.83]
[1755796851944,511.64,180.74,180.6,2.83]
[1755796852147,2.93,180.72,180.63,2.83]
[1755796853044,2.93,180.72,180.63,8.3669]
[1755796853244,2.93,180.72,180.63,2.83]
[1755796853543,2.93,180.72,180.63,8.3668]
[1755796853746,2.93,180.72,180.63,2.83]
[1755796854147,2.93,180.72,180.64,5.5366]
[1755796854346,139.34,180.74,180.65,2.84]
[1755796854541,2.82,180.77,180.65,5.04295813]
[1755796854740,2.82,180.77,180.67,5.5355]
[1755796854940,2.82,180.77,180.68,2.84]
[1755796856346,2.82,180.77,180.68,8.3753]
[1755796856845,2.82,180.77,180.71,0.03779579]
[1755796857245,0.96309519,180.83,180.72,2.84]
[1755796857246,2.82,180.81,180.72,2.84]
[1755796857639,2.82,180.81,180.72,8.374]
[1755796857843,2.82,180.81,180.72,2.84]
[1755796858346,2.82,180.81,180.72,8.3742]
[1755796859250,2.82,180.81,180.72,2.84]
[1755796860545,2.82,180.81,180.7,5.04295813]
[1755796860845,2.82,180.81,180.71,2.84]
[1755796861351,2.82,180.81,180.68,2.84]
[1755796863556,2.82,180.81,180.7,2.84]
[1755796865052,5.04295813,180.79,180.66,2.84]
[1755796865258,2.82,180.78,180.66,2.84]
[1755796865458,2.82,180.71,180.62,2.84]
[1755796867747,2.82,180.75,180.64,2.84]
[1755796868859,2.82,180.73,180.61,2.84]
[1755796871261,2.82,180.73,180.64,2.84]
[1755796871955,2.82,180.71,180.6,2.84]
[1755796872359,2.82,180.7,180.6,2.84]
[1755796873065,2.82,180.67,180.57,2.84]
[1755796873453,5.04295813,180.68,180.63,0.03832047]
[1755796873653,2.82,180.64,180.53,2.84]
[1755796874463,2.85938734,180.64,180.53,2.84]
[1755796874763,2.82,180.64,180.53,2.84]
[1755796874956,0.04188629,180.6,180.53,8.3799]
[1755796875667,0.04188629,180.6,180.54,5.5397]
[1755796875867,0.04188629,180.6,180.53,2.84]
[1755796876166,0.04188629,180.6,180.52,2.84]
[1755796876353,0.04188629,180.6,180.57,2.84]
[1755796876557,0.04188629,180.6,180.58,2.84]
[1755796877963,0.04188629,180.6,180.59,2.84]
[1755796879968,0.04188629,180.6,180.59,8.3782]
[1755796880267,0.04188629,180.6,180.59,2.84]
[1755796880757,377.02295813,180.71,180.59,3.4]
[1755796880758,2.82,180.69,180.59,3.4]
[1755796880961,2.82,180.69,180.59,2.84]
[1755796881158,2.82,180.69,180.62,2.84]
[1755796881362,2.82,180.73,180.62,2.84]
[1755796881564,2.82,180.73,180.65,5.5363]
[1755796881765,2.82,180.73,180.65,8.3763]
[1755796881964,2.82,180.73,180.65,2.84]
[1755796882163,2.82,180.73,180.67,0.03598794]
[1755796882372,0.042506,180.71,180.67,0.03598794]
[1755796882876,3.05,180.68,180.67,0.03598794]
[1755796883076,3.05,180.68,180.55,139.2]
[1755796883077,3.05,180.68,180.57,3.09]
[1755796884473,0.04211234,180.64,180.57,3.09]
[1755796884870,0.04211234,180.64,180.57,8.6286]
[1755796885573,0.04211234,180.64,180.57,3.09]
[1755796886168,0.04211234,180.64,180.56,3.09]
[1755796886373,0.04211234,180.64,180.59,3.09]
[1755796887167,0.04211234,180.64,180.62,5.5371]
[1755796887372,0.04211234,180.64,180.63,3.09]
[1755796888066,0.04211234,180.64,180.63,8.627]
[1755796889871,3.05,180.74,180.65,5.5361]
[1755796890177,3.05,180.74,180.62,3.13195305]
[1755796890475,3.05,180.74,180.65,3.09]
[1755796891166,3.05,180.74,180.65,8.6263]
[1755796891364,3.05,180.74,180.68,0.04261171]
[1755796892973,3.05,180.69,180.57,8.13295813]
[1755796893674,3.05,180.66,180.57,3.09]
[1755796894078,3.05,180.66,180.54,144.11154354]
[1755796894283,0.03593803,180.63,180.53,3.09]
[1755796894480,3.08593803,180.63,180.53,3.09]
[1755796894679,3.08593803,180.63,180.55,5.5392]
[1755796894876,3.08593803,180.63,180.53,3.09]
[1755796895073,3.08593803,180.63,180.55,3.09]
[1755796895274,0.03593803,180.63,180.55,3.09]
[1755796895478,3.05,180.68,180.55,3.09]
[1755796895673,3.05,180.68,180.58,3.09]
[1755796895976,0.03663731,180.61,180.6,8.6276]
[1755796896179,3.05,180.68,180.57,5.04295813]
[1755796896483,0.04039611,180.62,180.56,3.09]
[1755796897185,0.04039611,180.62,180.58,3.09]
[1755796897683,0.04039611,180.62,180.59,3.09]
[1755796897878,0.04039611,180.62,180.6,3.09]
[1755796898181,0.04039611,180.62,180.61,3.09]
[1755796900083,0.04039611,180.62,180.61,8.6276]
[1755796900582,0.04039611,180.62,180.61,3.09]
[1755796901185,0.04039611,180.62,180.61,8.6276]
[1755796901587,3.05,180.72,180.61,3.65]
[1755796901791,3.05,180.72,180.64,8.6265]
[1755796901978,3.05,180.72,180.64,3.09]
[1755796902781,3.05,180.72,180.65,5.5362]
[1755796903483,3.05,180.72,180.64,3.09]
[1755796903681,3.05,180.75,180.64,3.09]
[1755796904582,3.05,180.75,180.65,5.5363]
[1755796904884,3.05,180.74,180.64,3.09]
[1755796905976,3.05,180.74,180.64,8.6265]
[1755796906587,3.05,180.74,180.64,3.09]
[1755796908187,3.05,180.71,180.59,3.09]
[1755796908485,3.05,180.68,180.59,3.09]
[1755796910189,3.05,180.68,180.62,3.09]
[1755796910691,3.05,180.68,180.58,8.13295813]
[1755796910882,3.05,180.68,180.58,3.09]
[1755796911078,3.05,180.65,180.55,5.5392]
[1755796911486,3.05,180.65,180.54,3.09]
[1755796911682,3.05,180.65,180.56,5.5391]
[1755796911886,3.05,180.65,180.54,3.09]
[1755796912690,3.05,180.65,180.55,5.04295813]
[1755796912893,3.05,180.65,180.58,5.5383]
[1755796913086,3.05,180.65,180.56,2.88]
[1755796913487,3.05,180.65,180.58,5.5383]
[1755796913689,3.05,180.65,180.56,2.88]
[1755796913882,5.04295813,180.69,180.6,5.5379]
[1755796914082,2.93,180.69,180.61,2.88]
[1755796914487,2.93,180.69,180.62,5.5371]
[1755796914885,2.93,180.69,180.61,2.88]
[1755796915891,2.93,180.68,180.56,2.88]
[1755796916294,2.93,180.68,180.57,5.5387]
[1755796916496,2.93,180.68,180.56,2.88]
[1755796917193,2.93,180.65,180.56,2.88]
[1755796919096,2.93,180.65,180.57,5.5387]
[1755796919986,2.93,180.65,180.58,5.5384]
[1755796920497,5.04295813,180.68,180.59,8.4179]
[1755796920696,7.97295813,180.68,180.59,2.88]
[1755796921096,2.93,180.68,180.61,2.88]
[1755796921500,2.93,180.68,180.57,2.88]
[1755796921700,5.04295813,180.7,180.63,0.03961433]
[1755796921891,2.93,180.69,180.57,2.88]
[1755796922291,2.93,180.69,180.58,5.5384]
[1755796922490,2.93,180.69,180.61,0.03871345]
[1755796923193,2.93,180.66,180.61,0.03871345]
[1755796923389,2.93,180.65,180.61,0.03871345]
[1755796923592,2.93,180.63,180.61,0.03871345]
[1755796923794,5.04295813,180.67,180.61,0.03871345]
[1755796923995,2.93,180.62,180.61,0.03871345]
[1755796924795,2.93,180.62,180.54,2.88]
[1755796925193,2.93,180.6,180.5,374.84]
[1755796925393,2.93,180.6,180.5,2.88]
[1755796925795,5.04295813,180.58,180.5,2.88]
[1755796925996,2.93,180.57,180.5,2.88]
[1755796926195,2.97029348,180.57,180.5,2.88]
[1755796926795,2.97029348,180.57,180.44,144.08295813]
[1755796927099,5.04295813,180.55,180.45,2.88]
[1755796927289,2.93,180.54,180.45,2.88]
[1755796927494,0.04070836,180.52,180.45,8.4222]
[1755796927795,0.04070836,180.52,180.45,2.88]
[1755796927996,0.04070836,180.52,180.49,5.5412]
[1755796928197,0.04070836,180.52,180.51,2.88]
[1755796928592,0.04070836,180.52,180.51,8.4206]
[1755796929296,2.93,180.62,180.51,2.88]
[1755796929900,2.93,180.62,180.52,5.5401]
[1755796930098,2.93,180.59,180.47,7.92295813]
[1755796930493,2.93,180.59,180.47,2.88]
[1755796930699,2.93,180.59,180.51,0.04203446]
[1755796933108,2.93,180.59,180.51,5.58263446]
[1755796933905,2.93,180.59,180.51,0.04203446]
[1755796938913,5.04295813,180.57,180.51,0.04203446]
[1755796939213,2.93,180.56,180.51,0.04203446]
[1755796939411,2.93,180.55,180.51,0.04203446]
[1755796939607,2.93,180.53,180.51,0.04203446]
[1755796939812,2.93,180.52,180.42,2.88]
[1755796940007,2.93,180.49,180.42,2.88]
[1755796940711,2.93,180.46,180.33,2.88]
[1755796941109,2.93,180.46,180.35,2.88]
[1755796941305,2.93,180.44,180.35,2.88]
[1755796941710,0.0353897,180.42,180.37,2.88]
[1755796942014,0.0353897,180.42,180.4,2.88]
[1755796942211,2.93,180.48,180.39,5.04295813]
[1755796942212,2.93,180.48,180.41,2.88]
[1755796942412,0.03557231,180.43,180.39,5.04295813]